bitfinex/quotes_SOLUSD_20251202
["timestamp","ask_amount","ask_price","bid_price","bid_amount"]
[1764698253543,10.94759281,139.49,139.48,0.1]
[1764698253728,0.66,139.52,139.48,0.1]
[1764698253929,0.66,139.52,139.48,3.20862013]
[1764698254533,3.76862013,139.52,139.48,0.1]
[1764698254750,10.93605132,139.52,139.48,7.26948666]
[1764698254927,7.82743119,139.52,139.48,10.74810679]
[1764698255119,0.66,139.51,139.48,10.37810679]
[1764698255327,7.82743119,139.52,139.48,7.63948666]
[1764698255746,0.66,139.51,139.48,7.26948666]
[1764698256357,0.66,139.51,139.48,10.37810679]
[1764698256527,0.66,139.52,139.48,10.74810679]
[1764698257019,0.66,139.52,139.49,8.80994492]
[1764698257852,0.66,139.52,139.49,11.91856505]
[1764698258827,0.66,139.52,139.49,15.97841487]
[1764698263023,10.93607979,139.52,139.48,15.22930193]
[1764698263429,0.69,139.51,139.48,15.22930193]
[1764698263767,0.69,139.51,139.48,7.26930193]
[1764698265143,3.10862013,139.5,139.48,0.1]
[1764698265346,3.10862013,139.49,139.48,0.1]
[1764698265755,3.79862013,139.49,139.48,0.1]
[1764698266256,10.96759281,139.49,139.48,0.1]
[1764698267344,18.92759281,139.49,139.48,0.1]
[1764698267538,15.81897268,139.49,139.48,0.1]
[1764698267856,18.92759281,139.49,139.48,0.1]
[1764698270968,8.65,139.49,139.48,0.1]
[1764698271168,18.92759281,139.49,139.48,0.1]
[1764698272681,35.23645681,139.49,139.47,0.1]
[1764698272961,3.79862013,139.48,139.47,0.1]
[1764698273537,0.69,139.48,139.47,0.1]
[1764698273766,3.79862013,139.48,139.47,0.1]
[1764698274763,10.96810679,139.48,139.47,0.1]
[1764698275244,7.85948666,139.48,139.47,0.1]
[1764698275444,10.96810679,139.48,139.47,0.1]
[1764698280578,7.85948666,139.48,139.47,0.1]
[1764698280750,10.96810679,139.48,139.47,0.1]
[1764698284870,7.85948666,139.48,139.47,0.1]
[1764698285171,10.96810679,139.48,139.47,0.1]
[1764698286571,10.96810679,139.48,139.45,0.1]
[1764698286756,3.10862013,139.46,139.45,1e-08]
[1764698286955,18.23913497,139.46,139.45,1e-08]
[1764698287154,18.92913497,139.46,139.45,1e-08]
[1764698287674,18.92913497,139.46,139.42,0.1]
[1764698287675,72.70799628,139.46,139.42,0.1]
[1764698287854,3.10862013,139.43,139.42,0.1]
[1764698288056,11.06862013,139.43,139.42,0.1]
[1764698288356,13.51878113,139.43,139.42,0.1]
[1764698289062,20.69083879,139.43,139.42,0.1]
[1764698291780,15.82205766,139.43,139.42,0.1]
[1764698292248,12.82878113,139.43,139.42,0.1]
[1764698292592,12.04055094,139.44,139.42,0.57]
[1764698292812,12.82878113,139.46,139.42,0.57]
[1764698293078,19.9993739,139.46,139.42,0.57]
[1764698293265,15.13059277,139.46,139.43,8.80994492]
[1764698293452,7.96,139.46,139.43,8.80994492]
[1764698293656,12.82878113,139.46,139.44,0.47]
[1764698294079,12.82878113,139.46,139.42,0.1]
[1764698294264,19.99933521,139.46,139.43,0.47]
[1764698294778,19.99933521,139.46,139.42,0.1]
[1764698294779,4.86878113,139.44,139.42,0.1]
[1764698294959,4.86878113,139.43,139.42,0.1]
[1764698295580,12.82878113,139.44,139.42,0.1]
[1764698296250,8.67,139.44,139.42,0.1]
[1764698296456,4.86878113,139.43,139.42,0.1]
[1764698297286,20.71049756,139.44,139.42,0.1]
[1764698297676,4.86878113,139.43,139.42,0.1]
[1764698298259,7.88205766,139.43,139.42,0.1]
[1764698298471,12.75083879,139.43,139.42,0.1]
[1764698299491,7.88205766,139.43,139.42,0.1]
[1764698299791,12.75083879,139.43,139.42,0.1]
[1764698301189,7.88205766,139.43,139.42,0.1]
[1764698301383,12.75083879,139.43,139.42,0.1]
[1764698303286,7.88205766,139.43,139.42,0.1]
[1764698303595,12.75083879,139.43,139.42,0.1]
[1764698304196,7.88205766,139.43,139.42,0.1]
[1764698304367,12.75083879,139.43,139.42,0.1]
[1764698305994,7.96,139.44,139.42,0.57]
[1764698305995,12.82878113,139.44,139.42,0.57]
[1764698306179,4.86878113,139.43,139.42,0.1]
[1764698306580,5.57878113,139.43,139.42,0.1]
[1764698307398,12.75083879,139.43,139.42,0.1]
[1764698312503,7.17205766,139.43,139.42,0.1]
[1764698312681,12.04083879,139.43,139.42,0.1]
[1764698312886,12.75083879,139.43,139.42,0.1]
[1764698313904,12.04083879,139.43,139.42,0.1]
[1764698314104,7.17205766,139.43,139.42,0.1]
[1764698314407,12.82878113,139.47,139.42,5.43878113]
[1764698314583,13.49878113,139.47,139.42,5.43878113]
[1764698314906,13.49878113,139.47,139.43,0.47]
[1764698315206,4.86878113,139.46,139.43,0.47]
[1764698316002,12.03953853,139.46,139.43,0.47]
[1764698316783,4.86878113,139.44,139.42,0.1]
[1764698317503,5.53878113,139.45,139.42,0.1]
[1764698318005,12.71009688,139.45,139.42,0.1]
[1764698318207,4.86878113,139.44,139.42,0.1]
[1764698319710,7.84131575,139.45,139.42,0.1]
[1764698319907,8.63,139.47,139.42,0.57]
[1764698320086,4.86878113,139.46,139.42,0.57]
[1764698320502,8.63,139.47,139.42,0.57]
[1764698320710,4.86878113,139.46,139.42,0.57]
[1764698321099,4.86878113,139.45,139.42,0.57]
[1764698322191,12.03946931,139.46,139.42,0.57]
[1764698322502,4.86878113,139.45,139.42,0.57]
[1764698322902,4.86878113,139.45,139.42,7.74255166]
[1764698323714,4.86878113,139.45,139.42,0.57]
[1764698324019,12.03946931,139.46,139.42,0.57]
[1764698324807,12.73946931,139.46,139.42,0.57]
[1764698325009,4.86878113,139.45,139.42,0.57]
[1764698325412,0.7,139.46,139.42,0.57]
[1764698325717,4.86878113,139.45,139.42,0.57]
[1764698326013,7.17116674,139.45,139.42,0.57]
[1764698326210,7.96,139.47,139.43,8.80994492]
[1764698326417,12.82878113,139.47,139.43,8.80994492]
[1764698326615,4.86878113,139.47,139.44,0.47]
[1764698327416,7.17010811,139.47,139.44,0.47]
[1764698329819,15.12965973,139.48,139.44,7.64138769]
[1764698330018,18.62261368,139.49,139.45,4.86878113]
[1764698330019,7.16909728,139.49,139.45,4.86878113]
[1764698330202,7.16909728,139.49,139.45,5.33878113]
[1764698330404,4.86878113,139.48,139.45,0.47]
[1764698330600,7.86909728,139.49,139.45,0.47]
[1764698330803,4.86878113,139.48,139.45,0.47]
[1764698331694,12.03843141,139.48,139.45,0.47]
[1764698331900,4.86878113,139.49,139.45,7.6407768]
[1764698332197,19.99775393,139.49,139.45,7.6407768]
[1764698332412,19.99775393,139.49,139.45,7.1707768]
[1764698332617,20.69775393,139.49,139.46,0.47]
[1764698333004,19.99775393,139.49,139.46,0.47]
[1764698333205,7.96,139.49,139.46,12.50924831]
[1764698333517,7.96,139.49,139.46,7.64046718]
[1764698335741,0.7,139.53,139.49,5.33878113]
[1764698335899,8.66,139.53,139.49,5.33878113]
[1764698336102,13.52878113,139.53,139.49,0.47]
[1764698337031,8.66,139.53,139.49,0.47]
[1764698337327,7.96,139.53,139.49,12.50761231]
[1764698337532,12.73555943,139.54,139.49,12.50761231]
[1764698337735,7.16612317,139.55,139.52,4.86878113]
[1764698337905,7.16612317,139.55,139.5,14.14872605]
[1764698337906,12.0349043,139.55,139.5,14.14872605]
[1764698338106,12.7349043,139.55,139.51,0.47]
[1764698340122,7.86612317,139.55,139.51,0.47]
[1764698340327,66.48321425,139.54,139.42,0.1]
[1764698340637,4.86878113,139.47,139.43,5.33878113]
[1764698340840,0.7,139.53,139.43,0.47]
[1764698341140,12.82878113,139.52,139.48,4.86878113]
[1764698341346,7.96,139.52,139.48,4.86878113]
[1764698341642,20.69541308,139.54,139.49,5.33878113]
[1764698342006,20.69541308,139.54,139.5,0.47]
[1764698342349,15.12663195,139.54,139.5,5.33878113]
[1764698342531,7.96,139.54,139.51,4.86878113]
[1764698342735,12.73490635,139.55,139.51,4.86878113]
[1764698343034,7.96,139.56,139.52,12.50602316]
[1764698343220,12.82878113,139.56,139.52,12.50602316]
[1764698343419,19.99425829,139.56,139.52,12.50602316]
[1764698343626,5.56878113,139.55,139.51,8.80994492]
[1764698343932,4.86878113,139.58,139.53,4.86878113]
[1764698344136,4.86878113,139.57,139.53,4.86878113]
[1764698344315,5.56878113,139.58,139.53,5.33878113]
[1764698344515,0.7,139.57,139.53,5.33878113]
[1764698345034,12.73370619,139.57,139.53,5.33878113]
[1764698345327,12.73370619,139.57,139.53,12.50563252]
[1764698346412,12.03370619,139.57,139.52,8.80994492]
[1764698346614,4.86878113,139.54,139.5,8.80994492]
[1764698347045,0.7,139.53,139.5,20.8471768]
[1764698347218,0.7,139.53,139.5,4.86878113]
[1764698347640,0.7,139.54,139.5,12.03722873]
[1764698347944,0.7,139.53,139.5,7.1684476]
[1764698348124,0.7,139.53,139.5,4.86878113]
[1764698348739,7.86738193,139.53,139.49,21.17764513]
[1764698348936,12.73616306,139.53,139.49,21.17764513]
[1764698349152,0.7,139.52,139.49,21.17764513]
[1764698349445,4.86878113,139.51,139.46,4.86878113]
[1764698349827,0.7,139.5,139.48,16.308864]
[1764698350230,0.7,139.52,139.49,4.86878113]
[1764698350415,0.7,139.52,139.49,3.1102803]
[1764698350915,0.7,139.52,139.49,10.2791953]
[1764698351522,15.12738193,139.53,139.49,10.2791953]
[1764698351721,15.78738193,139.53,139.49,10.2791953]
[1764698352119,0.66,139.52,139.49,10.2791953]
[1764698353052,7.82753399,139.52,139.49,10.2791953]
[1764698353344,0.66,139.52,139.49,10.2791953]
[1764698353542,0.66,139.52,139.49,7.168915]
[1764698353842,7.96,139.53,139.49,10.2791953]
[1764698354059,15.78700449,139.53,139.49,10.2791953]
[1764698354240,7.96,139.53,139.49,10.2791953]
[1764698354434,11.7302803,139.53,139.49,10.7491953]
[1764698354857,11.0702803,139.53,139.49,10.2791953]
[1764698355034,0.66,139.52,139.49,10.2791953]
[1764698356754,7.82752839,139.52,139.48,23.94817553]
[1764698357044,7.82752839,139.52,139.48,27.05845583]
[1764698357249,0.66,139.51,139.48,16.308864]
[1764698357432,10.93848317,139.51,139.48,16.308864]
[1764698357750,0.66,139.56,139.5,3.1102803]
[1764698358050,7.82537689,139.56,139.53,3.1102803]
[1764698358469,0.66,139.55,139.52,3.1102803]
[1764698359424,7.16537689,139.56,139.53,3.1102803]
[1764698359648,0.66,139.55,139.53,3.1102803]
[1764698359952,7.16537689,139.56,139.53,3.1102803]
[1764698360152,7.82537689,139.56,139.53,3.1102803]
[1764698360356,0.66,139.55,139.53,3.1102803]
[1764698361643,7.82607322,139.55,139.53,3.1102803]
[1764698362738,7.82607322,139.55,139.52,3.1102803]
[1764698364157,7.82607322,139.55,139.53,3.1102803]
[1764698365453,0.66,139.55,139.53,3.1102803]
[1764698367968,25.85269639,139.57,139.53,3.1102803]
[1764698368138,0.66,139.56,139.54,3.1102803]
[1764698368938,7.94,139.57,139.54,3.1102803]
[1764698369134,7.1646253,139.58,139.55,3.1102803]
[1764698369456,0.2,139.59,139.55,3.1102803]
[1764698369696,10.47415657,139.59,139.54,8.80994492]
[1764698369856,3.1102803,139.57,139.53,3.1102803]
[1764698370035,7.82455372,139.58,139.54,3.1102803]
[1764698370236,0.66,139.57,139.54,3.1102803]
[1764698371342,0.66,139.57,139.54,10.2765675]
[1764698371546,7.82494075,139.57,139.54,10.2765675]
[1764698371855,7.82494075,139.57,139.54,7.1662872]
[1764698372051,0.66,139.57,139.54,7.1662872]
[1764698372250,0.66,139.56,139.54,10.2765675]
[1764698373261,15.10458998,139.58,139.54,10.2765675]
[1764698373557,15.81458998,139.58,139.55,10.27606665]
[1764698373936,0.2,139.59,139.56,3.1102803]
[1764698374136,0.91,139.59,139.56,3.1102803]
[1764698374336,0.91,139.59,139.54,7.16625307]
[1764698374337,8.07407554,139.59,139.54,7.16625307]
[1764698374560,0.71,139.58,139.54,10.27653337]
[1764698374949,0.71,139.58,139.55,3.1102803]
[1764698375563,0.71,139.58,139.55,10.27606854]
[1764698376839,7.87445463,139.58,139.55,3.1102803]
[1764698377265,0.71,139.57,139.54,7.16617512]
[1764698377464,0.71,139.57,139.54,10.27645542]
[1764698377669,0.71,139.57,139.55,3.1102803]
[1764698377853,0.71,139.57,139.56,3.1102803]
[1764698378670,0.71,139.57,139.55,3.1102803]
[1764698378845,7.8749476,139.57,139.55,3.1102803]
[1764698379467,7.8749476,139.57,139.53,15.97665447]
[1764698379787,0.71,139.57,139.55,3.1102803]
[1764698380485,7.87458573,139.58,139.56,3.1102803]
[1764698380651,0.71,139.57,139.55,3.1102803]
[1764698380967,0.71,139.57,139.54,3.1102803]
[1764698381870,0.71,139.57,139.54,10.27650673]
[1764698383270,7.87494162,139.57,139.43,57.38954953]
[1764698383565,15.81494162,139.57,139.53,3.1102803]
[1764698383742,15.81494162,139.57,139.53,10.27716859]
[1764698383943,0.66,139.56,139.53,10.27716859]
[1764698384362,7.94,139.57,139.54,3.1102803]
[1764698384574,8.6,139.57,139.54,3.1102803]
[1764698385690,7.3640621,139.59,139.55,3.1102803]
[1764698385847,0.66,139.58,139.55,11.92022522]
[1764698386974,3.7702803,139.58,139.53,10.27682491]
[1764698387357,0.66,139.57,139.53,10.27682491]
[1764698387554,7.8250106,139.57,139.53,10.74682491]
[1764698388643,0.66,139.56,139.53,10.74682491]
[1764698389074,7.82543393,139.56,139.53,7.16654461]
[1764698389250,7.82543393,139.56,139.53,10.74682491]
[1764698389648,0.66,139.55,139.51,3.1102803]
[1764698389871,0.66,139.55,139.52,3.1102803]
[1764698390169,0.66,139.55,139.53,3.1102803]
[1764698390783,7.8263703,139.55,139.53,3.1102803]
[1764698391343,7.8263703,139.55,139.51,0.47]
[1764698391547,7.8263703,139.55,139.53,3.1102803]
[1764698392667,0.66,139.55,139.54,3.1102803]
[1764698392989,7.16555738,139.56,139.54,3.1102803]
[1764698393164,7.16555738,139.56,139.52,10.7473298]
[1764698393366,0.66,139.55,139.52,10.7473298]
[1764698394193,7.82593964,139.55,139.52,10.2773298]
[1764698394794,18.21557697,139.57,139.52,10.7473298]
[1764698394992,0.66,139.56,139.53,3.1102803]
[1764698395494,0.66,139.56,139.52,10.7473298]
[1764698396793,7.82555452,139.56,139.52,10.7473298]
[1764698397091,7.82555452,139.56,139.52,7.6370495]
[1764698397271,7.82555452,139.56,139.52,10.7473298]
[1764698397471,0.66,139.56,139.52,10.7473298]
[1764698397679,0.66,139.55,139.52,10.2773298]
[1764698397892,7.82538891,139.56,139.53,3.1102803]
[1764698398200,7.82538891,139.56,139.52,10.7473298]
[1764698398770,0.66,139.55,139.52,10.2773298]
[1764698399599,0.66,139.55,139.52,7.1670495]
[1764698399803,0.66,139.55,139.52,10.2773298]
[1764698400178,0.66,139.55,139.53,3.1102803]
[1764698400379,0.66,139.55,139.49,3.1102803]
[1764698400380,3.1102803,139.54,139.49,3.1102803]
[1764698400599,3.1102803,139.53,139.48,3.1102803]
[1764698400803,3.7702803,139.53,139.48,3.1102803]
[1764698400982,3.7702803,139.52,139.48,3.1102803]
[1764698401176,0.66,139.52,139.48,3.1102803]
[1764698401381,0.66,139.51,139.48,3.1102803]
[1764698402001,3.1102803,139.53,139.48,0.47]
[1764698402182,3.1102803,139.53,139.48,7.16901238]
[1764698402183,0.66,139.52,139.48,7.16901238]
[1764698402510,10.93773429,139.52,139.47,28.69908922]
[1764698402711,10.93773429,139.52,139.47,35.8690541]
[1764698402888,0.66,139.51,139.47,35.8690541]
[1764698403084,0.66,139.56,139.51,8.80994492]
[1764698403594,0.66,139.56,139.52,0.47]
[1764698403595,3.7702803,139.56,139.52,0.47]
[1764698403793,0.66,139.56,139.52,3.5802803]
[1764698404001,0.66,139.56,139.53,3.1102803]
[1764698404210,0.86,139.59,139.55,3.1102803]
[1764698404590,0.66,139.58,139.54,26.58539964]
[1764698404788,0.66,139.58,139.51,16.308864]
[1764698404789,3.1102803,139.55,139.51,16.308864]
[1764698405199,0.66,139.54,139.51,16.308864]
[1764698405407,0.66,139.54,139.51,19.4191443]
[1764698405608,0.66,139.56,139.53,3.1102803]
[1764698405813,0.66,139.58,139.55,3.1102803]
[1764698406308,3.1102803,139.56,139.51,3.1102803]
[1764698406696,0.66,139.55,139.52,3.1102803]
[1764698406892,0.66,139.55,139.53,3.1102803]
[1764698407097,0.66,139.57,139.54,3.1102803]
[1764698407316,3.7702803,139.57,139.52,3.1102803]
[1764698407520,0.66,139.57,139.53,3.1102803]
[1764698407828,7.16455976,139.58,139.54,3.1102803]
[1764698408032,0.66,139.56,139.53,3.1102803]
[1764698408233,0.66,139.56,139.54,3.1102803]
[1764698409327,7.82452274,139.58,139.55,3.1102803]
[1764698409513,8.14,139.59,139.55,0.47]
[1764698409710,8.14,139.59,139.54,7.16635413]
[1764698409711,0.66,139.58,139.54,7.16635413]
[1764698409905,0.66,139.58,139.54,7.63635413]
[1764698410322,0.66,139.58,139.55,3.1102803]
[1764698410523,0.66,139.58,139.55,4.85581257]
[1764698410722,7.82441258,139.58,139.55,4.85581257]
[1764698410935,0.66,139.57,139.55,4.85581257]
[1764698411231,0.66,139.58,139.56,4.85581257]
[1764698412344,8.14,139.59,139.56,4.85581257]
[1764698412634,0.66,139.58,139.55,4.85581257]
[1764698413012,0.66,139.58,139.54,13.66575749]
[1764698413214,0.66,139.58,139.56,4.85581257]
[1764698413423,8.14,139.59,139.57,4.85581257]
[1764698413639,0.86,139.59,139.57,4.85581257]
[1764698413847,0.2,139.59,139.58,4.85581257]
[1764698414232,0.2,139.59,139.58,13.66575749]
[1764698414542,0.2,139.59,139.58,20.83010768]
[1764698415128,0.2,139.59,139.58,15.97429511]
[1764698415327,0.2,139.59,139.58,20.83010768]
[1764698416033,0.2,139.59,139.58,21.30010768]
[1764698417149,0.86,139.59,139.56,21.16467657]
[1764698417323,0.86,139.59,139.56,28.32993427]
[1764698417524,0.86,139.59,139.57,4.85581257]
[1764698417740,0.86,139.59,139.56,28.32993427]
[1764698418559,0.2,139.59,139.57,4.85581257]
[1764698418731,0.2,139.59,139.58,13.66575749]
[1764698420152,0.2,139.59,139.58,20.83010768]
[1764698421337,0.2,139.59,139.58,37.60897168]
[1764698421932,0.2,139.59,139.58,45.54897168]
[1764698425932,0.2,139.61,139.6,25.11880892]
[1764698426138,0.2,139.61,139.6,29.97462149]
[1764698426335,0.2,139.61,139.6,30.44462149]
[1764698427555,0.2,139.61,139.6,37.60794527]
[1764698427752,0.2,139.61,139.6,37.13794527]
[1764698428055,0.2,139.61,139.6,37.60794527]
[1764698428427,0.2,139.61,139.6,42.46375784]
[1764698428631,0.2,139.61,139.6,37.60794527]
[1764698428932,0.2,139.61,139.6,37.13794527]
[1764698429260,0.2,139.61,139.6,37.60794527]
[1764698431697,0.2,139.61,139.6,32.2821327]
[1764698431866,0.2,139.61,139.6,37.60794527]
[1764698432378,0.2,139.61,139.6,37.13794527]
[1764698432780,0.2,139.61,139.6,15.9732687]
[1764698433082,0.86,139.61,139.6,32.2821327]
[1764698433659,0.2,139.61,139.6,32.2821327]
[1764698433856,0.2,139.61,139.6,37.13794527]
[1764698436892,0.2,139.61,139.6,37.60794527]
[1764698437091,0.2,139.61,139.6,45.54794527]
[1764698437420,0.2,139.61,139.6,28.76908127]
[1764698437702,0.2,139.61,139.6,23.9132687]
[1764698437916,0.2,139.61,139.6,45.07794527]
[1764698438975,0.2,139.61,139.59,4.85581257]
[1764698438976,0.88,139.61,139.59,4.85581257]
[1764698439210,0.88,139.61,139.6,8.80994492]
[1764698441687,0.88,139.61,139.6,15.9732687]
[1764698441910,0.88,139.61,139.6,13.66575749]
[1764698442426,0.88,139.61,139.6,8.80994492]
[1764698443119,8.04281068,139.61,139.57,23.4733247]
[1764698443405,0.69,139.6,139.58,4.85581257]
[1764698444483,0.69,139.6,139.58,8.80994492]
[1764698448732,0.2,139.61,139.58,20.82976275]
[1764698449218,0.89,139.61,139.58,20.82976275]
[1764698449406,0.89,139.61,139.58,15.97395018]
[1764698450012,5.54581257,139.6,139.58,8.80994492]
[1764698450325,0.69,139.6,139.58,8.80994492]
[1764698450800,0.69,139.6,139.58,15.97428379]
[1764698451008,0.2,139.61,139.58,21.30009636]
[1764698451217,0.89,139.61,139.58,15.97428379]
[1764698453138,0.89,139.61,139.58,38.74097184]
[1764698453338,0.2,139.61,139.6,8.80994492]
[1764698454018,0.2,139.61,139.6,16.74994492]
[1764698455225,0.2,139.61,139.6,23.9132687]
[1764698456324,0.2,139.61,139.6,45.54794527]
[1764698456704,0.2,139.61,139.6,45.07794527]
[1764698460737,12.21627894,139.66,139.6,45.07794527]
[1764698460738,0.2,139.69,139.67,8.80994492]
[1764698460926,0.2,139.69,139.68,26.46157006]
[1764698461433,0.2,139.72,139.71,8.80994492]
[1764698461635,0.2,139.75,139.74,25.11880892]
[1764698461820,0.2,139.75,139.74,37.91462149]
[1764698462415,0.69,139.82,139.79,8.80994492]
[1764698462739,4.85581257,139.85,139.79,16.74994492]
[1764698462940,0.89,139.8,139.79,13.66575749]
[1764698464323,0.2,139.8,139.79,15.96353244]
[1764698464526,0.2,139.8,139.79,20.81934501]
[1764698464729,0.89,139.8,139.76,16.308864]
[1764698464928,0.89,139.8,139.79,29.97462149]
[1764698466627,0.89,139.8,139.79,37.12820901]
[1764698467123,0.2,139.8,139.79,37.12820901]
[1764698469031,0.89,139.8,139.79,37.12820901]
[1764698469233,0.2,139.8,139.79,37.12820901]
[1764698469641,0.89,139.8,139.79,32.27239644]
[1764698469838,0.69,139.86,139.8,8.80994492]
[1764698470039,0.69,139.86,139.85,4.85581257]
[1764698470239,0.69,139.86,139.85,13.66575749]
[1764698471325,0.69,139.86,139.84,4.85581257]
[1764698471646,0.69,139.86,139.84,16.308864]
[1764698471835,5.54581257,139.86,139.81,4.85581257]
[1764698472035,5.54581257,139.86,139.82,8.80994492]
[1764698472346,4.85581257,139.84,139.81,16.308864]
[1764698472539,3.09633978,139.84,139.8,8.80994492]
[1764698472847,3.09633978,139.81,139.73,4.85581257]
[1764698473051,3.09633978,139.78,139.73,3.09633978]
[1764698473430,0.71,139.77,139.76,3.09633978]
[1764698473636,0.84422967,139.77,139.76,3.09633978]
[1764698474155,0.84422967,139.77,139.75,19.40520378]
[1764698474336,0.84422967,139.77,139.75,23.57042203]
[1764698474653,0.84422967,139.77,139.75,7.26155803]
[1764698474850,0.84422967,139.77,139.74,8.80994492]
[1764698475065,0.84422967,139.77,139.74,25.11880892]
[1764698475361,7.9989464,139.77,139.71,14.41890548]
[1764698475566,15.26050443,139.77,139.72,7.26155803]
[1764698475765,0.71,139.76,139.73,16.07150295]
[1764698476550,0.71,139.76,139.74,7.26155803]
[1764698476848,0.13422967,139.77,139.76,15.96506798]
[1764698477049,0.13422967,139.77,139.76,23.22662601]
[1764698477360,0.13422967,139.77,139.71,35.78841886]
[1764698477361,21.81195687,139.77,139.62,0.7]
[1764698477570,8.80994492,139.72,139.64,0.7]
[1764698477877,6.02249482,139.76,139.66,7.96155803]
[1764698478187,16.308864,139.75,139.7,7.26155803]
[1764698478467,0.13422967,139.77,139.68,15.24155803]
[1764698478694,0.13422967,139.77,139.74,7.26155803]
[1764698478849,16.44309367,139.77,139.75,7.26155803]
[1764698479168,16.308864,139.76,139.74,7.26155803]
[1764698479988,0.13422967,139.77,139.73,14.41819361]
[1764698480190,0.13422967,139.77,139.74,7.26155803]
[1764698480556,0.13422967,139.77,139.75,7.26155803]
[1764698480878,0.13422967,139.77,139.75,14.41706932]
[1764698481062,0.13422967,139.77,139.76,7.26155803]
[1764698481268,0.13422967,139.77,139.75,7.15551129]
[1764698481488,0.13422967,139.77,139.75,14.41706932]
[1764698481858,0.13422967,139.77,139.76,7.26155803]
[1764698482686,0.13422967,139.77,139.75,7.15551129]
[1764698482878,0.13422967,139.77,139.76,7.26155803]
[1764698483194,0.13422967,139.77,139.76,15.11668109]
[1764698484008,0.1288408,139.79,139.77,25.11880892]
[1764698484315,1e-08,139.79,139.77,33.08036695]
[1764698484598,1e-08,139.79,139.78,15.94155803]
[1764698486697,1e-08,139.79,139.78,23.09565732]
[1764698487207,1e-08,139.79,139.78,15.83409929]
[1764698487370,1e-08,139.79,139.78,23.09565732]
[1764698487572,1e-08,139.79,139.78,15.11565732]
[1764698487915,1e-08,139.79,139.78,23.09565732]
[1764698489310,1e-08,139.79,139.78,23.92560224]
[1764698489596,1e-08,139.79,139.78,24.64404421]
[1764698489795,1e-08,139.79,139.78,31.90560224]
[1764698490426,1e-08,139.79,139.78,15.96404421]
[1764698490713,1e-08,139.79,139.77,7.26155803]
[1764698491106,1e-08,139.79,139.78,7.26155803]
[1764698493421,1e-08,139.79,139.78,39.41452132]
[1764698493731,0.13064631,139.79,139.78,39.41452132]
[1764698495100,0.1306463,139.79,139.78,39.41452132]
[1764698495300,0.1306463,139.79,139.78,48.22446624]
[1764698495502,0.14566246,139.8,139.78,32.63101216]
[1764698495828,0.13312983,139.81,139.8,8.80994492]
[1764698496121,0.13312983,139.81,139.8,16.07150295]
[1764698496327,0.13002173,139.82,139.8,17.49681053]
[1764698496509,0.13002173,139.82,139.81,24.74150295]
[1764698496924,0.13002173,139.82,139.81,31.89406714]
[1764698497739,0.13002173,139.82,139.81,7.15256419]
[1764698497922,0.13002173,139.82,139.81,22.37412222]
[1764698498111,0.13002173,139.82,139.81,23.08412222]
[1764698500313,0.13002173,139.82,139.81,31.89406714]
[1764698500629,0.14860938,139.83,139.81,31.89406714]
[1764698500809,0.14860938,139.83,139.82,7.97155803]
[1764698501007,1e-08,139.83,139.82,23.93355558]
[1764698504647,0.15561058,139.85,139.84,25.11880892]
[1764698504820,0.13301219,139.86,139.84,40.34036695]
[1764698505024,0.13301219,139.86,139.85,16.79150295]
[1764698505427,0.13301219,139.86,139.84,7.96]
[1764698505654,0.13301219,139.86,139.85,23.19992203]
[1764698505853,0.13301219,139.86,139.85,22.47992203]
[1764698506040,0.13301219,139.86,139.85,29.63044044]
[1764698506446,0.13301219,139.86,139.85,30.35044044]
[1764698506642,0.13301219,139.86,139.85,39.16038536]
[1764698507520,0.13123654,139.87,139.85,39.16038536]
[1764698507726,0.13123654,139.87,139.85,15.11051841]
[1764698508071,0.13123654,139.87,139.86,30.72042918]
[1764698508271,0.13123654,139.87,139.86,23.45887115]
[1764698508432,0.13123654,139.87,139.86,30.72042918]
[1764698511440,0.13123654,139.87,139.86,31.44042918]
[1764698511751,0.13123654,139.87,139.86,30.72042918]
[1764698512246,0.13123654,139.87,139.86,31.44042918]
[1764698512444,0.13123654,139.87,139.86,27.27154038]